[Event "45th FIDE Olympiad 2024"]
[Site "Budapest"]
[Date "2024.09.15"]
[Round "5.58"]
[White "Nogerbek, Kazybek"]
[Black "Shevchenko, Kirill"]
[Result "1/2-1/2"]
[ECO "D36"]
[WhiteElo "2519"]
[BlackElo "2673"]
[Annotator "TA"]
[PlyCount "119"]
[EventDate "2024.09.05"]
[EventType "team-tourn"]
[EventCountry "HUN"]
[SourceTitle "playchess.com"]
[Source "ChessBase"]
[SourceQuality "1"]
[WhiteTeam "Kazakhstan"]
[BlackTeam "Romania"]
[WhiteTeamCountry "KAZ"]
[BlackTeamCountry "ROU"]
[TimeControl "40/5400+30:1800+30"]

{[%evp 14,119,8,7,24,0,0,0,8,0,0,0,0,0,16,11,9,9,14,11,15,18,12,0,0,0,0,0,-6,0,0,0,0,-19,-9,-19,-14,-59,-70,-52,-65,-85,-86,-99,-87,-122,-27,-25,-32,-35,0,0,0,-20,-20,-60,-58,-37,0,0,0,-18,0,0,0,0,0,0,0,0,0,0,0,0,0,0,0,0,0,0,0,0,0,0,0,0,0,0,0,0,0,0,0,0,0,0,0,0,0,0,0,0,0,0,0,0,0,0]} 1. d4 {[%emt 0:01:18]} d5 {[%emt 0:00:42]} 2. c4 {[%emt 0:00:17]} e6 {[%emt 0:00:05]} 3. Nf3 {[%emt 0:00:39]} Nf6 {[%emt 0:00:14]} 4. Nc3 {[%emt 0:00:12]} c6 {[%emt 0:00:04]} 5. cxd5 {[%emt 0:02:53]} exd5 {[%emt 0:01:31]} 6. Bg5 {[%emt 0:00:17]} h6 {[%emt 0:02:48]} 7. Bh4 {[%emt 0:00:39]} Be7 {[%emt 0:01:29]} 8. Qc2 {[%emt 0:02:45]} Bg4 {[%emt 0:07:45]} 9. Ne5 {[%emt 0:05:58] Black must now prevent Bxf6.} Be6 {[%emt 0:00:34]} 10. e3 {[%emt 0:00:23]} Nbd7 {[%emt 0:01:02]} 11. Nxd7 {[%emt 0:01:59]} Qxd7 {[%emt 0:04:07]} 12. Bd3 {[%emt 0:01:39]} O-O {[%emt 0:02:02]} 13. O-O {[%emt 0:01:52]} Rfe8 {[%emt 0:02:07]} 14. Rab1 {[%emt 0:05:04]} Ng4 {[%emt 0:03:50]} 15. Bg3 {[%emt 0:04:24]} Bd6 {[%emt 0:03:14]} 16. Ne2 {[%emt 0:01:49]} Bxg3 {[%emt 0:06:13]} 17. Nxg3 {[%emt 0:02:02]} Qd6 {[%emt 0:02:11]} 18. Be2 {[%emt 0:04:07]} h5 {[%emt 0:05:12]} 19. Bxg4 {[%emt 0:02:45]} Bxg4 {[%emt 0:07:52]} 20. h3 {[%emt 0:04:40]} h4 $1 {[%emt 0:02:45]} 21. Nf5 {[%emt 0:00:54]} Bxf5 {[%emt 0:00:19]} 22. Qxf5 {[%emt 0:00:13]} a5 {[%emt 0:00:37]} 23. Rfe1 {[%emt 0:03:32]} Re4 {[%emt 0:09:27]} 24. f3 {[%emt 0:04:27]} Re6 {[%emt 0:00:13]} 25. Qg5 {[%emt 0:00:56]} Qg3 {[%emt 0:03:24]} 26. Qxg3 {[%emt 0:02:58]} hxg3 $15 {[%emt 0:00:02][%mdl 4096] Endgame. KRR-KRR} 27. e4 {[%emt 0:14:21]} dxe4 {[%emt 0:06:40]} 28. Rxe4 {[%emt 0:01:59]} Rd8 {[%emt 0:06:37] aiming for ...Rxe4.} 29. Rd1 {[%emt 0:07:59] [#]} c5 {[%emt 0:10:16]} (29... Red6 $1 $17 {...f5 would now be deadly.} 30. Rg4 f5 31. Rxg3 Rxd4 32. Rxd4 Rxd4) 30. Kf1 $1 $11 {[%emt 0:02:28]} Rb6 {[%emt 0:05:04]} (30... Rxe4 31. fxe4 cxd4 (31... Rxd4 32. Rxd4 cxd4 33. Ke2 $11) 32. Ke2 $11) 31. b3 {[%emt 0:04:35]} Rbd6 {[%emt 0:00:53][%cal Rc5d4]} (31... a4 $5 32. bxa4 g6 $11) 32. Ke2 {[%emt 0:01:59]} cxd4 {[%emt 0:01:57]} 33. Rc1 {[%emt 0:01:04] [#]} a4 $1 {[%emt 0:03:14] Hoping for ...axb3.} 34. b4 {[%emt 0:03:07]} (34. Kd3 axb3) 34... f5 {[%emt 0:00:57]} 35. Re5 {[%emt 0:04:15][%cal Oe2d3]} Rd5 {[%emt 0:00:04]} 36. Rxd5 {The position is equal.} Rxd5 {[%emt 0:00:01] KR-KR} 37. Rc8+ {[%emt 0:04:17]} Kf7 {[%emt 0:00:25] And now ...Re5+ would win.} 38. Rc7+ {[%emt 0:00:51]} Kf6 {[%emt 0:00:41]} 39. Rxb7 {[%emt 0:00:14]} Re5+ {[%emt 0:00:12]} 40. Kd2 $1 {[%emt 0:00:48]} a3 {[%emt 0:03:06][%cal Od4d3]} 41. Rb6+ {[%emt 0:33:42]} Ke7 {[%emt 0:08:37]} 42. Rc6 {[%emt 0:00:00]} (42. Kd3 Re1 (42... Re3+ 43. Kd2 $11) 43. Rg6 (43. Kxd4 Re2 $19) 43... Kf7 (43... Rd1+ 44. Kc2 $11) 44. Rxg3 Rb1) 42... g5 {[%emt 0:05:09]} 43. Rc5 {[%emt 0:00:00]} Rxc5 {[%emt 0:01:51]} 44. bxc5 {[%emt 0:00:00] KP-KP} Ke6 {[%emt 0:00:02]} 45. Kd3 {[%emt 0:00:00]} Kd5 {[%emt 0:00:10]} 46. c6 {[%emt 0:00:00]} Kxc6 {[%emt 0:00:03]} 47. Kxd4 {[%emt 0:00:00]} Kd6 {[%emt 0:00:59]} 48. Ke3 {[%emt 0:00:00] White threatens f4 and mate.} f4+ $1 {[%emt 0:00:36]} 49. Kd4 {[%emt 0:01:26]} Ke6 {[%emt 0:00:25]} 50. Ke4 {[%emt 0:00:13]} Kf6 {[%emt 0:00:14]} 51. h4 {[%emt 0:01:10]} gxh4 {[%emt 0:00:07][%cal Oh4h3] ( -> ...h3!)} 52. Kxf4 {[%emt 0:00:05] Threatening mate with Kg4.} h3 $1 {[%emt 0:00:05]} 53. Kxg3 {[%emt 0:00:06]} hxg2 {[%emt 0:00:03]} 54. Kxg2 {[%emt 0:00:07] KPP-KP} Kf5 {[%emt 0:00:07]} 55. Kf2 {[%emt 0:00:05]} Kf4 {[%emt 0:00:12]} 56. Ke2 {[%emt 0:00:07]} Kf5 {[%emt 0:00:01]} 57. Ke3 {[%emt 0:00:49]} Ke5 {[%emt 0:00:05]} 58. Kd3 {[%emt 0:00:39] Kc4 would kill now.} Kf4 {[%emt 0:00:04]} 59. Kc3 {[%emt 0:00:06] White wants to mate with Kb3.} Kxf3 {[%emt 0:00:05]} 60. Kb3 {[%emt 0:00:04] Weighted Error Value: White=0.05 (flawless) /Black=0.06 (flawless) .  Mistake:       	---       	Black=1      Inaccurate:     	White=3     	Black=2      OK:         	White=19    	Black=29     Best:        	White=3     	Black=6      Strong:       	White=2     	Black=3} 1/2-1/2

[Event "45th FIDE Olympiad 2024"]
[Site "Budapest"]
[Date "2024.09.15"]
[Round "5.58"]
[White "Tan, Santiago Jr"]
[Black "Gabriel, Sixtus"]
[Result "0-1"]
[ECO "D10"]
[WhiteElo "1903"]
[BlackElo "1800"]
[PlyCount "94"]
[EventDate "2024.09.05"]
[EventType "team-tourn"]
[EventCountry "HUN"]
[WhiteTeam "Palau"]
[BlackTeam "Saint Lucia"]
[WhiteTeamCountry "PAL"]
[TimeControl "40/5400+30:1800+30"]

1. d4 d5 2. c4 c6 3. Nc3 Nf6 4. Bf4 dxc4 5. e4 e6 6. Bxc4 Qb6 7. Nge2 Be7 8. O-O O-O 9. Qc2 Nbd7 10. h3 Nh5 11. Be3 Qc7 12. e5 g6 13. Bh6 Re8 14. Qb3 Nb6 15. Ne4 Nd5 16. Rac1 Bf8 17. Bxf8 Rxf8 18. Bxd5 exd5 19. Nd2 Qe7 20. Qe3 f6 21. f4 Bd7 22. Rf3 Rae8 23. Rcf1 Qb4 24. Qc3 Qb6 25. Kh2 Ng7 26. b4 Qa6 27. Nc1 Bf5 28. Re1 h5 29. Rfe3 fxe5 30. Rxe5 Rxe5 31. Rxe5 Ne6 32. Qe3 Kf7 33. Nf3 Ke7 34. Nh4 Rf6 35. Nxf5+ gxf5 36. Ne2 h4 37. Ng1 Qf1 38. Nf3 Kd6 39. b5 Rg6 40. Nxh4 Nxf4 41. Qf3 Rxg2+ 42. Qxg2 Nxg2 43. Nxg2 f4 44. Rg5 f3 45. Nf4 Qf2+ 46. Kh1 Qe1+ 47. Kh2 Qd2+ {0-} 0-1

[Event "45th FIDE Olympiad 2024"]
[Site "Budapest"]
[Date "2024.09.15"]
[Round "5.59"]
[White "Nisipeanu, Liviu-Dieter"]
[Black "Zhalmakhanov, Ramazan"]
[Result "1/2-1/2"]
[ECO "C55"]
[WhiteElo "2580"]
[BlackElo "2497"]
[Annotator "TA"]
[PlyCount "55"]
[EventDate "2024.09.05"]
[EventType "team-tourn"]
[EventCountry "HUN"]
[SourceTitle "playchess.com"]
[Source "ChessBase"]
[SourceQuality "1"]
[WhiteTeam "Romania"]
[BlackTeam "Kazakhstan"]
[WhiteTeamCountry "ROU"]
[BlackTeamCountry "KAZ"]
[TimeControl "40/5400+30:1800+30"]

{[%evp 12,55,12,15,16,13,25,23,27,26,35,22,30,27,36,31,37,37,33,26,49,33,45,35,25,27,39,19,22,35,35,25,32,0,19,0,0,0,0,0,0,0,0,0,0,0]} 1. e4 {[%emt 0:03:27]} e5 {[%emt 0:00:12]} 2. Nf3 {[%emt 0:00:06]} Nc6 {[%emt 0:00:06]} 3. Bc4 {[%emt 0:00:07]} Nf6 {[%emt 0:00:18]} 4. d3 {[%emt 0:00:06]} Be7 {[%emt 0:00:26]} 5. O-O {[%emt 0:01:46]} O-O {[%emt 0:00:14]} 6. Nc3 {[%emt 0:03:31]} d6 {[%emt 0:00:16]} 7. a3 {[%emt 0:00:05]} Be6 {[%emt 0:03:56][%cal Of6e4]} 8. Nd5 {[%emt 0:00:14]} Bxd5 {[%emt 0:12:06]} 9. exd5 {[%emt 0:00:10]} Nb8 {[%emt 0:00:05] White has an edge.} 10. Re1 {[%emt 0:08:31]} c6 {[%emt 0:05:40]} 11. dxc6 {[%emt 0:00:37]} bxc6 {[%emt 0:00:17]} 12. b4 {[%emt 0:08:12]} Nbd7 {[%emt 0:01:10]} 13. Bb3 {[%emt 0:00:24][%cal Bc4b3,Bb3a4,Ba4b5][%mdl 32]} a5 {[%emt 0:05:30]} 14. Bd2 {[%emt 0:00:07]} Qc7 {[%emt 0:05:40]} 15. c4 {[%emt 0:06:57]} Rfe8 {[%emt 0:12:06]} 16. Qc2 {[%emt 0:10:22]} c5 {[%emt 0:10:37]} 17. bxa5 {[%emt 0:01:46]} Bd8 {[%emt 0:01:30]} 18. Ba4 {[%emt 0:00:55][%cal Od3d4]} Qc8 {[%emt 0:03:16] [#]} 19. a6 $1 {[%emt 0:10:11]} Rxa6 {[%emt 0:06:30]} (19... Re7 20. Bb5) 20. Bb5 {[%emt 0:00:07]} Ra8 {[%emt 0:00:03]} 21. a4 {[%emt 0:06:59]} Re7 {[%emt 0:00:45]} 22. Bg5 {[%emt 0:08:26]} Re6 {[%emt 0:05:12] The position is equal.} 23. Bxf6 {[%emt 0:03:39]} Nxf6 {[%emt 0:00:46]} 24. Ng5 {[%emt 0:00:10]} Re7 {[%emt 0:00:07]} 25. Ne4 {[%emt 0:00:05]} Re6 {[%emt 0:08:58]} 26. Ng5 {[%emt 0:06:31]} Re7 {[%emt 0:00:45]} 27. Ne4 {[%emt 0:03:47]} Re6 {[%emt 0:00:29]} 28. Ng5 {[%emt 0:03:06] Weighted Error Value: White=0.04 (flawless) /Black=0.04 (flawless) .  Inaccurate:     	White=1     	---        OK:         	White=12    	Black=9} 1/2-1/2

[Event "45th FIDE Olympiad 2024"]
[Site "Budapest"]
[Date "2024.09.15"]
[Round "5.59"]
[White "James, Justin"]
[Black "Salvadora, Angelo"]
[Result "1-0"]
[ECO "B07"]
[WhiteElo "1745"]
[BlackElo "1812"]
[PlyCount "63"]
[EventDate "2024.09.05"]
[EventType "team-tourn"]
[EventCountry "HUN"]
[WhiteTeam "Saint Lucia"]
[BlackTeam "Palau"]
[BlackTeamCountry "PAL"]
[TimeControl "40/5400+30:1800+30"]

1. e4 d6 2. d4 Nf6 3. Bd3 Bg4 4. f3 Bd7 5. Be3 e5 6. Ne2 Nh5 7. O-O Nc6 8. c3 Be7 9. d5 Nb8 10. Nd2 c6 11. c4 O-O 12. g4 Bg5 13. Bf2 Nf4 14. Nxf4 Bxf4 15. Kg2 Qg5 16. Nb3 h5 17. h3 b6 18. Nc1 g6 19. Ne2 hxg4 20. fxg4 Bxg4 21. hxg4 Qxg4+ 22. Ng3 Qg5 23. Rh1 f5 24. exf5 gxf5 25. Qh5 Qg7 26. Bxf5 Rxf5 27. Qxf5 Nd7 28. Qe6+ Kf8 29. Qxd6+ Kg8 30. dxc6 Nc5 31. c7 Ne4 32. Qd5+ 1-0

[Event "45th FIDE Olympiad 2024"]
[Site "Budapest"]
[Date "2024.09.15"]
[Round "5.60"]
[White "Ansat, Aldiyar"]
[Black "Parligras, Mircea-Emilian"]
[Result "0-1"]
[ECO "C65"]
[WhiteElo "2457"]
[BlackElo "2537"]
[Annotator "TA"]
[PlyCount "120"]
[EventDate "2024.09.05"]
[EventType "team-tourn"]
[EventCountry "HUN"]
[SourceTitle "playchess.com"]
[Source "ChessBase"]
[SourceQuality "1"]
[WhiteTeam "Kazakhstan"]
[BlackTeam "Romania"]
[WhiteTeamCountry "KAZ"]
[BlackTeamCountry "ROU"]
[TimeControl "40/5400+30:1800+30"]

{[%evp 45,120,0,0,0,6,-28,-55,-38,-23,-23,-33,-77,-37,-74,-41,-193,-41,-44,-47,-51,-54,-48,0,-51,0,-49,-50,-48,-54,-47,-46,-45,-50,-58,-58,-58,-58,-58,-58,-58,-19,-20,-19,-19,-19,-40,-19,-25,-23,-23,-4,-4,-4,-84,-84,-84,-84,-84,-84,-84,-84,-84,-84,-84,-84,-148,-132,-132,-132,-29967,-29969,-29978,-29979,-29979,-29980,-29994,-29995]} 1. e4 {[%emt 0:00:03]} e5 {[%emt 0:01:26]} 2. Nf3 {[%emt 0:00:16]} Nc6 {[%emt 0:00:14]} 3. Bb5 {[%emt 0:00:09]} Nf6 {[%emt 0:00:09]} 4. d3 {[%emt 0:00:30]} Bc5 {[%emt 0:00:08]} 5. Ba4 {[%emt 0:00:12]} O-O {[%emt 0:03:37]} 6. O-O {[%emt 0:00:06] C65: Ruy Lopez: Berlin Defence (3...Nf6), unusual lines and 4 0-0 Bc5.} d6 {[%emt 0:04:39]} 7. c3 {[%emt 0:00:09]} Ne7 {[%emt 0:03:37]} 8. h3 {[%emt 0:22:46]} Ng6 {[%emt 0:00:22]} 9. Bc2 {[%emt 0:03:40]} d5 {[%emt 0:12:40]} 10. d4 {[%emt 0:09:18]} Bb6 {[%emt 0:18:36]} 11. Bg5 $146 {[%emt 0:09:48]} ({Predecessor:} 11. exd5 exd4 12. cxd4 Nxd5 13. Nc3 c6 14. Re1 Ndf4 15. Bxg6 Nxg6 16. d5 cxd5 17. Bg5 {½-½ Adams,M (2677)-Ponomariov,R (2646) Salamanca Masters 7th rapid 2024 (2)}) 11... dxe4 {[%emt 0:11:08]} 12. Nxe5 {[%emt 0:02:15]} Nxe5 {[%emt 0:01:07]} 13. dxe5 {[%emt 0:00:05]} Qxd1 {[%emt 0:00:14]} 14. Rxd1 {[%emt 0:00:08]} Nd7 {[%emt 0:00:24]} 15. Bxe4 {[%emt 0:18:13]} Nxe5 {[%emt 0:00:37]} 16. Nd2 {[%emt 0:10:06]} Re8 {[%emt 0:05:59]} 17. Re1 {[%emt 0:04:06]} c6 {[%emt 0:07:44]} 18. Bf4 {[%emt 0:01:46]} f6 {[%emt 0:07:22]} 19. Bxe5 {[%emt 0:04:20]} Rxe5 {[%emt 0:02:12]} 20. Nc4 {[%emt 0:00:05]} Re6 {[%emt 0:00:14]} 21. Nxb6 {[%emt 0:02:54]} axb6 {[%emt 0:00:06]} 22. Rad1 {[%emt 0:00:03]} Kf7 {[%emt 0:01:24]} 23. g4 {[%emt 0:03:09]} (23. Bxh7 g6 $17) 23... g6 {[%emt 0:01:32]} 24. a3 {[%emt 0:02:23]} (24. Rd8 $2 f5 25. f3 (25. gxf5 $2 gxf5 26. f3 h6 $19) 25... h5 $19 (25... fxe4 26. Rxe4 Rxe4 27. fxe4 $19)) 24... Re7 {[%emt 0:02:33]} 25. f4 {[%emt 0:01:11]} (25. Rd8 $2 f5 26. f3 (26. gxf5 $2 gxf5 27. f3 fxe4 $19) 26... fxe4 $19) 25... Ra4 {[%emt 0:03:04]} 26. Bc2 {[%emt 0:01:53]} (26. Rd4 $2 Rxd4 27. cxd4 f5 28. gxf5 Bxf5 29. Bxf5 Rxe1+ 30. Kf2 Rh1 $19 (30... Rd1 $2 31. Bc8 $19)) 26... Rxe1+ {[%emt 0:00:31]} 27. Rxe1 {[%emt 0:00:01]} Rxf4 {[%emt 0:00:12]} 28. Kg2 {[%emt 0:01:31]} f5 {[%emt 0:08:26]} 29. g5 {[%emt 0:01:07]} h6 {[%emt 0:00:08]} 30. gxh6 $2 {[%emt 0:00:41]} (30. Bb3+ $15 Kf8 31. Rd1 (31. gxh6 Rh4 $17)) 30... Rh4 $2 {[%emt 0:00:06]} (30... Be6 $1 $19 {aiming for ...Bd5+.} 31. Rd1 (31. Kg3 $2 g5 $19) 31... Rh4) 31. Bb3+ $15 {[%emt 0:00:12]} Kf8 {[%emt 0:00:17]} 32. Rd1 {[%emt 0:00:14]} Ke7 {[%emt 0:00:06]} 33. Re1+ {[%emt 0:00:04]} Kf8 {[%emt 0:00:44]} 34. Rd1 {[%emt 0:00:54]} Ke7 {[%emt 0:00:05]} 35. Re1+ {[%emt 0:00:04]} Kd8 {[%emt 0:01:32]} 36. Bf7 {[%emt 0:03:22]} Rxh6 {[%emt 0:01:19]} 37. Re8+ {[%emt 0:00:02]} Kc7 {[%emt 0:00:07]} 38. Rg8 {[%emt 0:00:27]} f4 {[%emt 0:00:13]} 39. Bxg6 {[%emt 0:00:12]} Bxh3+ {[%emt 0:02:19]} (39... Rxh3 $2 {loses.} 40. Rxc8+ Kxc8 41. Kxh3 $18) 40. Kf3 {[%emt 0:00:01]} Be6 {[%emt 0:01:59]} 41. Rg7+ {[%emt 0:30:10]} Kd6 {[%emt 0:02:55]} 42. Kxf4 {[%emt 0:00:00]} Rh2 {[%emt 0:00:18]} 43. Rxb7 {[%emt 0:00:00]} Rxb2 {[%emt 0:00:09]} 44. Ke3 {[%emt 0:00:00]} Kc5 {[%emt 0:02:13]} 45. Be4 {[%emt 0:00:00]} Bc4 {[%emt 0:09:01]} 46. Bd3 {[%emt 0:00:00]} Bd5 {[%emt 0:01:47]} 47. Ra7 {[%emt 0:00:00]} b5 {[%emt 0:02:32]} 48. Ra6 {[%emt 0:00:00]} Ra2 {[%emt 0:01:00]} 49. Be4 {[%emt 0:00:00]} (49. Be2 $11) 49... Bxe4 $17 {[%emt 0:03:47]} 50. Kxe4 {[%emt 0:00:00]} Rh2 {[%emt 0:00:25]} 51. Kd3 {[%emt 0:00:36] [#]} Rh4 $1 {[%emt 0:00:27]} 52. Ra8 {[%emt 0:05:30] [#]} Rh3+ $1 {[%emt 0:00:17]} 53. Kc2 {[%emt 0:01:28]} Kc4 {[%emt 0:00:08]} 54. Rc8 {[%emt 0:00:44]} c5 {[%emt 0:02:21]} ({Don't play} 54... Rxc3+ $6 55. Kb2 Kd4 56. Rd8+ Kc4 57. Rc8 Rb3+ 58. Ka2 $11) 55. Rg8 {[%emt 0:00:30]} (55. Kb2 $142) 55... Rh2+ {[%emt 0:00:55]} 56. Kc1 {[%emt 0:00:18]} Kb3 {[%emt 0:00:52]} ({Resist} 56... Kxc3 57. Rg3+ Kc4 58. Rf3 $15) 57. Rb8 $2 {[%emt 0:00:46][%mdl 8192]} (57. c4 $17) 57... Kxc3 {[%emt 0:00:33]} 58. Kb1 {[%emt 0:00:01]} b4 {[%emt 0:01:49]} 59. axb4 {[%emt 0:00:21]} c4 {[%emt 0:00:05]} 60. Rh8 {[%emt 0:01:07]} Rxh8 {[%emt 0:00:08]} 0-1

[Event "45th FIDE Olympiad 2024"]
[Site "Budapest"]
[Date "2024.09.15"]
[Round "5.60"]
[White "Mahor Jr, Manuel"]
[Black "Daniel, Cyrus"]
[Result "1/2-1/2"]
[ECO "D02"]
[WhiteElo "1759"]
[BlackElo "1759"]
[PlyCount "76"]
[EventDate "2024.09.05"]
[EventType "team-tourn"]
[EventCountry "HUN"]
[WhiteTeam "Palau"]
[BlackTeam "Saint Lucia"]
[WhiteTeamCountry "PAL"]
[TimeControl "40/5400+30:1800+30"]

1. d4 d5 2. Nf3 Nf6 3. Bf4 c5 4. e3 Nc6 5. c3 Qb6 6. Qc1 Bf5 7. Nbd2 e6 8. Nh4 cxd4 9. exd4 Rc8 10. Nxf5 exf5 11. Nb3 Be7 12. Bd3 g6 13. O-O O-O 14. h3 Rfe8 15. Re1 Bf8 16. Bg5 Rxe1+ 17. Qxe1 Re8 18. Qd2 Ne4 19. Bxe4 fxe4 20. Re1 Nd8 21. Bxd8 Qxd8 22. f3 exf3 23. Rxe8 Qxe8 24. gxf3 Qe6 25. Kg2 Qf5 26. Nc5 Bd6 27. Nd3 g5 28. Qe3 Kg7 29. b3 b5 30. b4 h6 31. a3 Kf8 32. h4 Kg7 33. hxg5 hxg5 34. Ne5 Qc2+ 35. Kh3 Qf5+ 36. Kg2 Qc2+ 37. Kh3 Qf5+ 38. Kg2 Qc2+ 1/2-1/2

[Event "45th FIDE Olympiad 2024"]
[Site "Budapest"]
[Date "2024.09.15"]
[Round "5.61"]
[White "Garcia Pantoja, Roberto"]
[Black "Rodshtein, Maxim"]
[Result "1/2-1/2"]
[ECO "B52"]
[WhiteElo "2550"]
[BlackElo "2600"]
[Annotator "TA"]
[PlyCount "88"]
[EventDate "2024.09.05"]
[EventType "team-tourn"]
[EventCountry "HUN"]
[SourceTitle "playchess.com"]
[Source "ChessBase"]
[SourceQuality "1"]
[WhiteTeam "Colombia"]
[BlackTeam "Israel"]
[WhiteTeamCountry "COL"]
[BlackTeamCountry "ISR"]
[TimeControl "40/5400+30:1800+30"]

{[%evp 26,88,12,7,20,30,48,55,58,63,70,15,5,0,50,18,66,67,57,26,32,39,25,18,24,6,31,46,48,37,60,0,0,0,0,0,72,57,101,-30,-7,-35,0,-41,-19,-20,0,-18,-33,-31,0,0,0,-22,0,-17,0,-7,-7,-6,-14,-8,-8,-7,0]} 1. e4 {[%emt 0:00:03]} c5 {[%emt 0:00:09]} 2. Nf3 {[%emt 0:00:07]} d6 {[%emt 0:00:15]} 3. Bb5+ {[%emt 0:00:14]} Bd7 {[%emt 0:00:39]} 4. Bxd7+ {[%emt 0:00:16]} Nxd7 {[%emt 0:00:18]} 5. O-O {[%emt 0:00:16]} e6 {[%emt 0:00:54]} 6. Qe2 {[%emt 0:01:31]} Ngf6 {[%emt 0:02:26]} 7. c3 {[%emt 0:00:17]} Be7 {[%emt 0:00:57]} 8. d4 {[%emt 0:00:09]} O-O {[%emt 0:00:25]} 9. e5 {[%emt 0:00:31]} Ne8 {[%emt 0:01:41]} 10. Qe4 {[%emt 0:03:38] B52: Sicilian: Moscow Variation with 3...Bd7.} cxd4 {[%emt 0:08:05]} 11. cxd4 {[%emt 0:00:06]} dxe5 {[%emt 0:01:24]} 12. dxe5 {[%emt 0:00:07]} Nc5 {[%emt 0:06:24]} 13. Qg4 {[%emt 0:00:22]} Qd3 {[%emt 0:26:20]} 14. Nc3 {[%emt 0:00:16]} Nc7 {[%emt 0:07:56]} (14... f5 $5 15. Qg3 Qa6 $16) 15. Rd1 {[%emt 0:13:57]} Qf5 {[%emt 0:06:02]} 16. Qc4 $146 {[%emt 0:01:16]} ({Predecessor:} 16. Qxf5 exf5 17. Be3 Rfd8 18. Nd4 g6 19. Ndb5 Nxb5 20. Nxb5 Nd3 21. b3 a6 22. Bb6 axb5 23. Bxd8 Rxd8 {0-1 Warmerdam,M (2506)-Abdusattorov,N (2627) Titled Tuesday intern op 30th June blitz 2020 (3)}) 16... Rfc8 {[%emt 0:09:31]} 17. Be3 {[%emt 0:07:18]} N5a6 {[%emt 0:17:17]} 18. Rd7 {[%emt 0:25:19]} (18. Rac1 $14) 18... Bf8 $11 {[%emt 0:01:40]} 19. Qh4 {[%emt 0:02:06]} h6 {[%emt 0:02:21]} (19... Nb8 $1 $11 20. Rd4 Nc6) 20. a3 {[%emt 0:02:52]} Nc5 {[%emt 0:00:55]} (20... Nb8 $11 {might be stronger.} 21. Rdd1 Nc6) 21. Bxc5 $1 $14 {[%emt 0:03:58]} Bxc5 {[%emt 0:00:02]} 22. Rad1 {[%emt 0:03:15]} (22. h3 {with more complications.} Qc2 23. Rf1 Rab8 24. Qf4) 22... Bf8 {[%emt 0:01:37]} 23. h3 {[%emt 0:03:49]} Na6 $1 {[%emt 0:01:19]} 24. Ne4 {[%emt 0:00:27]} Nc5 {[%emt 0:02:50]} 25. Ng3 {[%emt 0:08:09]} Qc2 {[%emt 0:00:25]} 26. R7d2 {[%emt 0:00:12]} Qg6 {[%emt 0:00:32]} 27. Rd4 {[%emt 0:00:07]} Rc7 {[%emt 0:00:25]} 28. b4 {[%emt 0:01:37]} (28. Rd8 $1 $14 Rxd8 29. Qxd8) 28... Be7 $11 {[%emt 0:00:25]} 29. Qf4 {[%emt 0:00:25]} Na4 {[%emt 0:00:02]} 30. Qd2 {[%emt 0:05:28]} Rc2 {[%emt 0:01:36] [#]} (30... Nc3 $11 31. Rc1 Rac8) 31. Qe1 $1 $16 {[%emt 0:01:47]} Nc3 {[%emt 0:00:32] [#]} 32. R1d2 {[%emt 0:00:01]} (32. Rg4 $1 $16 {[%cal Rg4g6]} Bg5 33. Rd7) 32... Rxd2 $11 {[%emt 0:00:28]} 33. Qxd2 {[%emt 0:00:11]} Nd5 {[%emt 0:00:33]} 34. Rg4 {[%emt 0:00:29]} Qb1+ {[%emt 0:00:09]} 35. Kh2 {[%emt 0:00:01]} Kh7 {[%emt 0:00:13]} 36. Nh5 {[%emt 0:01:34]} g6 {[%emt 0:00:26]} 37. Nf4 {[%emt 0:00:04]} Rd8 {[%emt 0:00:28]} 38. Nxd5 {[%emt 0:00:54]} Rxd5 {[%emt 0:00:05]} 39. Qc3 {[%emt 0:00:39]} Qd3 {[%emt 0:01:29]} (39... Bd8 {simplifies} 40. Rd4 Rxd4 41. Qxd4 Bb6) 40. Qc8 {[%emt 0:00:29]} Rd7 {[%emt 0:00:40]} (40... Qxa3 41. Qe8 (41. Qxb7 Qd3 $18) 41... Qd3 42. Qxf7+ (42. Qxe7 Rd7 $18) 42... Kh8 43. Qe8+ (43. Qxe7 Rd8 44. Qf6+ Kg8 45. Rxg6+ Qxg6 46. Qxg6+ Kf8 47. Qf6+ Ke8 48. Qxe6+ Kf8) 43... Kh7 44. Qxe7+ Kg8 45. Qxe6+ Kg7 46. Qf6+ Kg8 47. Rxg6+ (47. Qxg6+ Qxg6 48. Rxg6+ Kf8 $18) (47. Qxg6+ Qxg6 48. Rxg6+ Kf8 $18)) 41. Qe8 {[%emt 0:43:11]} Kg7 {[%emt 0:05:41]} 42. Nd4 {[%emt 0:00:00]} Rxd4 {[%emt 0:03:29]} 43. Qxe7 {[%emt 0:00:00]} Rxg4 {[%emt 0:00:35]} 44. hxg4 {[%emt 0:00:00]} Qxa3 {[%emt 0:01:49]} 1/2-1/2

[Event "45th FIDE Olympiad 2024"]
[Site "Budapest"]
[Date "2024.09.15"]
[Round "5.61"]
[White "Hasford, John Kojo"]
[Black "Moncur, Cecil"]
[Result "1/2-1/2"]
[ECO "A41"]
[WhiteElo "1956"]
[BlackElo "1839"]
[PlyCount "70"]
[EventDate "2024.09.05"]
[EventType "team-tourn"]
[EventCountry "HUN"]
[WhiteTeam "Ghana"]
[BlackTeam "Bahamas"]
[WhiteTeamCountry "GHA"]
[BlackTeamCountry "BAH"]
[TimeControl "40/5400+30:1800+30"]

1. d4 g6 2. Nf3 Bg7 3. c4 d6 4. Nc3 Nc6 5. Bf4 e5 6. dxe5 Nxe5 7. Nxe5 dxe5 8. Qxd8+ Kxd8 9. O-O-O+ Bd7 10. Bg5+ f6 11. Bd2 c6 12. Ne4 Kc7 13. Bb4 Rd8 14. Bd6+ Kc8 15. Ba3 Kc7 16. e3 Bf8 17. Nd6 Be6 18. Ne4 Rxd1+ 19. Kxd1 Bxa3 20. bxa3 b6 21. Be2 Bf5 22. Nc3 Ne7 23. e4 Be6 24. Kc2 Rd8 25. f3 Nc8 26. Nd1 Rd4 27. Ne3 Nd6 28. Kc3 Nb7 29. Rd1 Rxd1 30. Bxd1 Kd6 31. Kb4 a5+ 32. Kc3 Kc5 33. g3 Nd6 34. Be2 h6 35. Bd3 h5 1/2-1/2